[Event "Live Chess"]
[Site "Chess.com"]
[Date "2023.05.21"]
[Round "-"]
[White "tuppyglossop"]
[Black "tpm07"]
[Result "0-1"]
[WhiteElo "1632"]
[BlackElo "1914"]
[TimeControl "300"]
[EndTime "23:03:56 PDT"]
[Termination "tpm07 won by resignation"]

1. e4 {[%clk 0:04:57.5]} 1... e5 {[%clk 0:04:57]} 2. f4 {[%clk 0:04:55.4]} 2...
d5 {[%clk 0:04:55.2]} 3. exd5 {[%clk 0:04:53.9]} 3... exf4 {[%clk 0:04:53.8]} 4.
d4 {[%clk 0:04:51.6]} 4... Nf6 {[%clk 0:04:52.6]} 5. Nf3 {[%clk 0:04:50.3]} 5...
Nxd5 {[%clk 0:04:51.4]} 6. Bc4 {[%clk 0:04:47.9]} 6... Ne3 {[%clk 0:04:35.1]} 7.
Bxe3 {[%clk 0:04:42.7]} 7... fxe3 {[%clk 0:04:35]} 8. Qe2 {[%clk 0:04:39.1]}
8... Qe7 {[%clk 0:04:34.4]} 9. O-O {[%clk 0:04:34.3]} 9... Bg4 {[%clk
0:04:30.3]} 10. h3 {[%clk 0:04:33.1]} 10... Bh5 {[%clk 0:04:26.4]} 11. Ne5
{[%clk 0:04:23]} 0-1

[Event "Live Chess"]
[Site "Chess.com"]
[Date "2023.05.21"]
[Round "-"]
[White "matt1979"]
[Black "Nazar_777"]
[Result "1-0"]
[WhiteElo "1523"]
[BlackElo "1609"]
[TimeControl "300"]
[EndTime "23:04:06 PDT"]
[Termination "matt1979 won by checkmate"]

1. f4 {[%clk 0:04:58.5]} 1... e6 {[%clk 0:04:53.5]} 2. Nf3 {[%clk 0:04:55.8]}
2... a6 {[%clk 0:04:49.3]} 3. e3 {[%clk 0:04:54.2]} 3... h5 {[%clk 0:04:48.4]}
4. Be2 {[%clk 0:04:46.9]} 4... c5 {[%clk 0:04:47.4]} 5. O-O {[%clk 0:04:45.3]}
5... Nc6 {[%clk 0:04:46]} 6. b3 {[%clk 0:04:40.8]} 6... Nf6 {[%clk 0:04:45.2]}
7. Bb2 {[%clk 0:04:39.8]} 7... Qc7 {[%clk 0:04:44.1]} 8. d3 {[%clk 0:04:38.4]}
8... Be7 {[%clk 0:04:43.5]} 9. Ne5 {[%clk 0:04:32.9]} 9... Nxe5 {[%clk
0:04:41.7]} 10. Bxe5 {[%clk 0:04:31.1]} 10... Bd6 {[%clk 0:04:40]} 11. Bb2
{[%clk 0:04:26.1]} 11... b5 {[%clk 0:04:36.3]} 12. g3 {[%clk 0:04:16.5]} 12...
Bb7 {[%clk 0:04:33.9]} 13. e4 {[%clk 0:04:13.7]} 13... Be7 {[%clk 0:04:31.5]}
14. Nd2 {[%clk 0:04:08.9]} 14... Ng4 {[%clk 0:04:29.8]} 15. Bxg4 {[%clk
0:04:03.8]} 15... hxg4 {[%clk 0:04:28.4]} 16. Qxg4 {[%clk 0:04:02.7]} 16... Bf6
{[%clk 0:04:26.9]} 17. Bxf6 {[%clk 0:04:00.3]} 17... gxf6 {[%clk 0:04:25.3]} 18.
Qg7 {[%clk 0:03:56.2]} 18... O-O-O {[%clk 0:04:22.6]} 19. Qxf6 {[%clk
0:03:54.2]} 19... Qc6 {[%clk 0:04:15.7]} 20. Qxf7 {[%clk 0:03:48.7]} 20... Rh6
{[%clk 0:04:11.1]} 21. Nf3 {[%clk 0:03:39.4]} 21... Rdh8 {[%clk 0:04:07.1]} 22.
Qg7 {[%clk 0:03:33.2]} 22... R8h7 {[%clk 0:04:03.5]} 23. Qc3 {[%clk 0:03:19]}
23... Kb8 {[%clk 0:03:56.9]} 24. b4 {[%clk 0:03:09.3]} 24... c4 {[%clk
0:03:51.8]} 25. Rae1 {[%clk 0:02:40.7]} 25... d5 {[%clk 0:03:44.2]} 26. exd5
{[%clk 0:02:27.8]} 26... exd5 {[%clk 0:03:36.8]} 27. Rf2 {[%clk 0:02:18.8]}
27... Ka7 {[%clk 0:03:30.8]} 28. Qd4+ {[%clk 0:02:13.4]} 28... Ka8 {[%clk
0:03:28.8]} 29. Rfe2 {[%clk 0:02:05.4]} 29... Rh8 {[%clk 0:03:22.3]} 30. Ne5
{[%clk 0:01:58.5]} 30... Qe6 {[%clk 0:02:59.4]} 31. Nf3 {[%clk 0:01:49]} 31...
Qh3 {[%clk 0:02:54.4]} 32. Qf2 {[%clk 0:01:37.6]} 32... d4 {[%clk 0:02:43.3]}
33. Re8+ {[%clk 0:01:26.6]} 33... Rxe8 {[%clk 0:02:38.5]} 34. Rxe8+ {[%clk
0:01:25.2]} 34... Bc8 {[%clk 0:02:24.1]} 35. Qxd4 {[%clk 0:01:17.4]} 35... Qd7
{[%clk 0:02:13.8]} 36. Qxd7 {[%clk 0:01:11.3]} 36... Kb8 {[%clk 0:02:00.2]} 37.
Qxc8+ {[%clk 0:01:09.7]} 37... Ka7 {[%clk 0:01:58.3]} 38. Re7+ {[%clk
0:01:06.1]} 38... Kb6 {[%clk 0:01:56.2]} 39. Qb7# {[%clk 0:01:04.5]} 1-0

[Event "Live Chess"]
[Site "Chess.com"]
[Date "2023.05.21"]
[Round "-"]
[White "LaupMiths"]
[Black "Singapourfeuj"]
[Result "0-1"]
[WhiteElo "1816"]
[BlackElo "2214"]
[TimeControl "300"]
[EndTime "23:04:57 PDT"]
[Termination "Singapourfeuj won by checkmate"]

1. Nf3 {[%clk 0:04:56.1]} 1... Nf6 {[%clk 0:04:58.7]} 2. c4 {[%clk 0:04:55]}
2... g6 {[%clk 0:04:57.7]} 3. b3 {[%clk 0:04:54.2]} 3... Bg7 {[%clk 0:04:57.1]}
4. Bb2 {[%clk 0:04:53.8]} 4... O-O {[%clk 0:04:56.1]} 5. g3 {[%clk 0:04:53.1]}
5... c5 {[%clk 0:04:55.2]} 6. Bg2 {[%clk 0:04:52.8]} 6... Nc6 {[%clk 0:04:54.4]}
7. O-O {[%clk 0:04:51.8]} 7... d6 {[%clk 0:04:53.6]} 8. d4 {[%clk 0:04:41.8]}
8... cxd4 {[%clk 0:04:51.6]} 9. Nxd4 {[%clk 0:04:40.8]} 9... Bd7 {[%clk
0:04:48.7]} 10. Nc2 {[%clk 0:04:36.6]} 10... a6 {[%clk 0:04:42.9]} 11. Ne3
{[%clk 0:04:34.6]} 11... Rc8 {[%clk 0:04:40.9]} 12. Nc3 {[%clk 0:04:25.7]} 12...
Qa5 {[%clk 0:04:29.9]} 13. Rb1 {[%clk 0:04:20.8]} 13... Qh5 {[%clk 0:04:25.3]}
14. Ncd5 {[%clk 0:04:17.4]} 14... Nxd5 {[%clk 0:04:21.9]} 15. Nxd5 {[%clk
0:04:14]} 15... Bxb2 {[%clk 0:04:17.9]} 16. Rxb2 {[%clk 0:04:13.9]} 16... Bh3
{[%clk 0:04:11.3]} 17. e4 {[%clk 0:04:03.1]} 17... Qxd1 {[%clk 0:04:08.8]} 18.
Rxd1 {[%clk 0:04:01.1]} 18... Bxg2 {[%clk 0:04:08.1]} 19. Kxg2 {[%clk
0:03:59.7]} 19... Rfe8 {[%clk 0:04:07.1]} 20. Rbd2 {[%clk 0:03:55.3]} 20... Kg7
{[%clk 0:04:05.2]} 21. f3 {[%clk 0:03:49.9]} 21... f6 {[%clk 0:04:02.3]} 22. Kf2
{[%clk 0:03:44.6]} 22... Kf7 {[%clk 0:04:00.2]} 23. h3 {[%clk 0:03:43.5]} 23...
b5 {[%clk 0:03:57.3]} 24. Rc1 {[%clk 0:03:37.4]} 24... bxc4 {[%clk 0:03:55.4]}
25. Rxc4 {[%clk 0:03:35.8]} 25... Ne5 {[%clk 0:03:54.2]} 26. Rxc8 {[%clk
0:03:30.4]} 26... Rxc8 {[%clk 0:03:53]} 27. f4 {[%clk 0:03:29.5]} 27... Nd7
{[%clk 0:03:50.4]} 28. Ne3 {[%clk 0:03:20.3]} 28... a5 {[%clk 0:03:46.8]} 29.
Nc4 {[%clk 0:03:18.8]} 29... a4 {[%clk 0:03:44.5]} 30. Ke3 {[%clk 0:03:16.9]}
30... axb3 {[%clk 0:03:42.4]} 31. axb3 {[%clk 0:03:16.8]} 31... Nc5 {[%clk
0:03:40.6]} 32. Rb2 {[%clk 0:03:14.8]} 32... Nxb3 {[%clk 0:03:39.3]} 33. Rxb3
{[%clk 0:03:12.9]} 33... Rxc4 {[%clk 0:03:38]} 34. Kd3 {[%clk 0:03:06.2]} 34...
Rc1 {[%clk 0:03:36.3]} 35. Kd4 {[%clk 0:03:02.6]} 35... h5 {[%clk 0:03:34.3]}
36. h4 {[%clk 0:03:00.5]} 36... Rg1 {[%clk 0:03:30.3]} 37. Kd5 {[%clk
0:02:58.4]} 37... Rd1+ {[%clk 0:03:27.8]} 38. Kc4 {[%clk 0:02:56.3]} 38... Ke6
{[%clk 0:03:26.3]} 39. Rf3 {[%clk 0:02:45.9]} 39... f5 {[%clk 0:03:24.5]} 40.
Re3 {[%clk 0:02:44.4]} 40... fxe4 {[%clk 0:03:22]} 41. Rxe4+ {[%clk 0:02:43.4]}
41... Kf6 {[%clk 0:03:20.6]} 42. Re3 {[%clk 0:02:40.1]} 42... d5+ {[%clk
0:03:16.6]} 43. Kc3 {[%clk 0:02:38.5]} 43... e6 {[%clk 0:03:15.4]} 44. Kc2
{[%clk 0:02:37.5]} 44... Ra1 {[%clk 0:03:13]} 45. Kd3 {[%clk 0:02:37]} 45...
Ra3+ {[%clk 0:03:11.4]} 46. Ke2 {[%clk 0:02:35.8]} 46... Rxe3+ {[%clk 0:03:10]}
47. Kxe3 {[%clk 0:02:35.7]} 47... Kf5 {[%clk 0:03:08.9]} 48. Kf3 {[%clk
0:02:34]} 48... e5 {[%clk 0:03:08.1]} 49. fxe5 {[%clk 0:02:32.1]} 49... Kxe5
{[%clk 0:03:07.4]} 50. g4 {[%clk 0:02:30.5]} 50... hxg4+ {[%clk 0:03:05.4]} 51.
Kxg4 {[%clk 0:02:30.4]} 51... d4 {[%clk 0:03:03.1]} 52. Kg5 {[%clk 0:02:30.3]}
52... d3 {[%clk 0:03:01.9]} 53. Kxg6 {[%clk 0:02:30.2]} 53... d2 {[%clk
0:03:01]} 54. h5 {[%clk 0:02:30.1]} 54... d1=Q {[%clk 0:02:59.7]} 55. h6 {[%clk
0:02:30]} 55... Qg4+ {[%clk 0:02:57.5]} 56. Kf7 {[%clk 0:02:25.2]} 56... Qh5+
{[%clk 0:02:56.3]} 57. Kg7 {[%clk 0:02:23.8]} 57... Qg5+ {[%clk 0:02:55.4]} 58.
Kh7 {[%clk 0:02:22.4]} 58... Kf6 {[%clk 0:02:54.2]} 59. Kh8 {[%clk 0:02:21.4]}
59... Qxh6+ {[%clk 0:02:53.2]} 60. Kg8 {[%clk 0:02:20.2]} 60... Qg7# {[%clk
0:02:52.3]} 0-1

[Event "Live Chess"]
[Site "Chess.com"]
[Date "2023.05.21"]
[Round "-"]
[White "LutherSullivan"]
[Black "Crowded_House"]
[Result "1-0"]
[WhiteElo "2191"]
[BlackElo "1696"]
[TimeControl "300"]
[EndTime "23:05:02 PDT"]
[Termination "LutherSullivan won by checkmate"]

1. e4 {[%clk 0:04:57.4]} 1... e6 {[%clk 0:04:59]} 2. d4 {[%clk 0:04:55.7]} 2...
d5 {[%clk 0:04:58.7]} 3. e5 {[%clk 0:04:54.7]} 3... c5 {[%clk 0:04:57]} 4. c3
{[%clk 0:04:54.2]} 4... Nc6 {[%clk 0:04:55.8]} 5. Nf3 {[%clk 0:04:52.2]} 5...
Qb6 {[%clk 0:04:55.3]} 6. Be2 {[%clk 0:04:50.3]} 6... Nge7 {[%clk 0:04:54.1]} 7.
Na3 {[%clk 0:04:47.9]} 7... a6 {[%clk 0:04:44.8]} 8. O-O {[%clk 0:04:40.6]} 8...
Ng6 {[%clk 0:04:43.7]} 9. h4 {[%clk 0:04:22.9]} 9... h6 {[%clk 0:04:35.6]} 10.
h5 {[%clk 0:04:04.5]} 10... Nge7 {[%clk 0:04:33.9]} 11. Nc2 {[%clk 0:04:02.9]}
11... Bd7 {[%clk 0:04:28.8]} 12. b4 {[%clk 0:03:55.3]} 12... cxb4 {[%clk
0:04:26.5]} 13. cxb4 {[%clk 0:03:54.2]} 13... Nc8 {[%clk 0:04:16.1]} 14. Rb1
{[%clk 0:03:49.2]} 14... Be7 {[%clk 0:04:08.3]} 15. Bd2 {[%clk 0:03:33]} 15...
O-O {[%clk 0:04:06.8]} 16. a4 {[%clk 0:03:27.6]} 16... N8a7 {[%clk 0:04:02.8]}
17. Bd3 {[%clk 0:03:15.7]} 17... Rfc8 {[%clk 0:03:58.7]} 18. g4 {[%clk 0:03:11]}
18... Qd8 {[%clk 0:03:51.1]} 19. b5 {[%clk 0:02:53.2]} 19... axb5 {[%clk
0:03:48.1]} 20. axb5 {[%clk 0:02:51.5]} 20... Nb8 {[%clk 0:03:41.1]} 21. Ra1
{[%clk 0:02:38.6]} 21... b6 {[%clk 0:03:31.5]} 22. Nb4 {[%clk 0:02:20.7]} 22...
Bxb4 {[%clk 0:03:24.2]} 23. Bxb4 {[%clk 0:02:18.4]} 23... Qc7 {[%clk 0:03:18.4]}
24. Qb3 {[%clk 0:02:10.9]} 24... Qb7 {[%clk 0:03:16.7]} 25. Bd6 {[%clk
0:02:06.7]} 25... Be8 {[%clk 0:03:05.3]} 26. g5 {[%clk 0:02:00.5]} 26... hxg5
{[%clk 0:03:00.3]} 27. Nxg5 {[%clk 0:01:58.7]} 27... Nd7 {[%clk 0:02:49.7]} 28.
f4 {[%clk 0:01:50.4]} 28... Nf8 {[%clk 0:02:39.7]} 29. Bxf8 {[%clk 0:01:24]}
29... Kxf8 {[%clk 0:02:32.6]} 30. Qb4+ {[%clk 0:01:23.3]} 30... Kg8 {[%clk
0:02:21.9]} 31. Bh7+ {[%clk 0:01:20.7]} 31... Kh8 {[%clk 0:02:16.4]} 32. Qf8#
{[%clk 0:01:20.1]} 1-0

[Event "Live Chess"]
[Site "Chess.com"]
[Date "2023.05.21"]
[Round "-"]
[White "JohanKjeldahl"]
[Black "ProfPoisson"]
[Result "1-0"]
[WhiteElo "1871"]
[BlackElo "1120"]
[TimeControl "300"]
[EndTime "23:05:07 PDT"]
[Termination "JohanKjeldahl won on time"]

1. e4 {[%clk 0:04:57]} 1... e5 {[%clk 0:04:57.2]} 2. Nf3 {[%clk 0:04:54.8]} 2...
Nf6 {[%clk 0:04:54.1]} 3. d4 {[%clk 0:04:53]} 3... Nxe4 {[%clk 0:04:51.9]} 4.
Bd3 {[%clk 0:04:49.9]} 4... d5 {[%clk 0:04:49.1]} 5. Nxe5 {[%clk 0:04:48.3]}
5... Nd7 {[%clk 0:04:46.5]} 6. O-O {[%clk 0:04:38.6]} 6... Nxe5 {[%clk
0:04:43.4]} 7. dxe5 {[%clk 0:04:37.4]} 7... Nc5 {[%clk 0:04:21.9]} 8. Bf4 {[%clk
0:04:31.3]} 8... Nxd3 {[%clk 0:04:17.6]} 9. Qxd3 {[%clk 0:04:30.1]} 9... Be6
{[%clk 0:04:15.1]} 10. Nc3 {[%clk 0:04:25.7]} 10... Be7 {[%clk 0:04:06.4]} 11.
Qb5+ {[%clk 0:04:18.7]} 11... c6 {[%clk 0:03:59.6]} 12. Qxb7 {[%clk 0:04:16.4]}
12... O-O {[%clk 0:03:57.9]} 13. Qxc6 {[%clk 0:04:12.1]} 13... d4 {[%clk
0:03:31]} 14. Ne2 {[%clk 0:04:07.3]} 14... d3 {[%clk 0:03:28.3]} 15. cxd3 {[%clk
0:04:01.6]} 15... Qxd3 {[%clk 0:03:24.6]} 16. Ng3 {[%clk 0:04:00.2]} 16... Rac8
{[%clk 0:03:14.8]} 17. Qb7 {[%clk 0:03:57.3]} 17... Bc5 {[%clk 0:02:58]} 18.
Rad1 {[%clk 0:03:53.3]} 18... Bxf2+ {[%clk 0:02:39.2]} 19. Kh1 {[%clk
0:03:51.6]} 19... Qc2 {[%clk 0:02:24]} 20. Rc1 {[%clk 0:03:35.8]} 20... Qd3
{[%clk 0:01:52.9]} 21. Rxf2 {[%clk 0:03:17.4]} 21... Rxc1+ {[%clk 0:01:42.2]}
22. Bxc1 {[%clk 0:03:13.9]} 22... Qd1+ {[%clk 0:01:36.1]} 23. Rf1 {[%clk
0:03:12.8]} 23... Qd4 {[%clk 0:01:17.9]} 24. Qe4 {[%clk 0:03:07.8]} 24... Qc5
{[%clk 0:00:58.2]} 25. b4 {[%clk 0:02:58.3]} 25... Qb6 {[%clk 0:00:44.4]} 26. a3
{[%clk 0:02:55]} 26... Rd8 {[%clk 0:00:40.6]} 27. Bb2 {[%clk 0:02:39.5]} 27...
Bd5 {[%clk 0:00:37.4]} 28. Qg4 {[%clk 0:02:31.1]} 28... Bxg2+ {[%clk 0:00:18.2]}
29. Kxg2 {[%clk 0:02:22.8]} 29... Rd2+ {[%clk 0:00:13.4]} 30. Kh3 {[%clk
0:02:18.8]} 30... Rxb2 {[%clk 0:00:11.8]} 31. Qc8+ {[%clk 0:02:16.4]} 1-0

[Event "Live Chess"]
[Site "Chess.com"]
[Date "2023.05.21"]
[Round "-"]
[White "Jo1ts"]
[Black "Conradical12"]
[Result "0-1"]
[WhiteElo "822"]
[BlackElo "1620"]
[TimeControl "300"]
[EndTime "23:05:23 PDT"]
[Termination "Conradical12 won by checkmate"]

1. d4 {[%clk 0:04:58.9]} 1... d5 {[%clk 0:04:56.6]} 2. Bf4 {[%clk 0:04:58.2]}
2... Nc6 {[%clk 0:04:55.5]} 3. Nf3 {[%clk 0:04:57.6]} 3... Bf5 {[%clk 0:04:54]}
4. e3 {[%clk 0:04:57]} 4... e6 {[%clk 0:04:52.3]} 5. a3 {[%clk 0:04:55.9]} 5...
Nf6 {[%clk 0:04:50.7]} 6. c3 {[%clk 0:04:55.3]} 6... Bd6 {[%clk 0:04:45.6]} 7.
Bg3 {[%clk 0:04:53]} 7... O-O {[%clk 0:04:45.1]} 8. Bd3 {[%clk 0:04:52.3]} 8...
Bg6 {[%clk 0:04:42.3]} 9. Bxg6 {[%clk 0:04:44.5]} 9... fxg6 {[%clk 0:04:37.8]}
10. Qd3 {[%clk 0:04:41.5]} 10... Bxg3 {[%clk 0:04:30.7]} 11. hxg3 {[%clk
0:04:38.9]} 11... Ne4 {[%clk 0:04:29.5]} 12. Nbd2 {[%clk 0:04:36.4]} 12... Nxd2
{[%clk 0:04:22.5]} 13. Qxd2 {[%clk 0:04:35.7]} 13... Qf6 {[%clk 0:04:21.4]} 14.
Qd3 {[%clk 0:04:34.3]} 14... h6 {[%clk 0:04:18.1]} 15. O-O-O {[%clk 0:04:29.5]}
15... g5 {[%clk 0:04:13.9]} 16. Nd2 {[%clk 0:04:20.5]} 16... a6 {[%clk
0:03:50.7]} 17. f4 {[%clk 0:04:16.6]} 17... g4 {[%clk 0:03:47.8]} 18. e4 {[%clk
0:04:08.7]} 18... dxe4 {[%clk 0:03:44]} 19. Nxe4 {[%clk 0:04:08.2]} 19... Qf5
{[%clk 0:03:41.5]} 20. Rh4 {[%clk 0:03:58.8]} 20... b5 {[%clk 0:03:36.9]} 21.
Qe3 {[%clk 0:03:30.6]} 21... Na5 {[%clk 0:03:26.8]} 22. Nf2 {[%clk 0:03:12.9]}
22... Nb3# {[%clk 0:03:20.5]} 0-1

[Event "Live Chess"]
[Site "Chess.com"]
[Date "2023.05.21"]
[Round "-"]
[White "OleksiyJr1"]
[Black "SavagePawn7"]
[Result "1-0"]
[WhiteElo "965"]
[BlackElo "784"]
[TimeControl "300"]
[EndTime "23:05:34 PDT"]
[Termination "OleksiyJr1 won by resignation"]

1. e4 {[%clk 0:04:53.8]} 1... d5 {[%clk 0:04:58.4]} 2. exd5 {[%clk 0:04:50.9]}
2... Nf6 {[%clk 0:04:56.7]} 3. Nc3 {[%clk 0:04:50.8]} 3... Nxd5 {[%clk
0:04:54.5]} 4. Nxd5 {[%clk 0:04:49.2]} 4... Qxd5 {[%clk 0:04:52.9]} 5. c4 {[%clk
0:04:48.6]} 5... Qe6+ {[%clk 0:04:46.9]} 6. Be2 {[%clk 0:04:39.2]} 6... Nc6
{[%clk 0:04:43.8]} 7. Nf3 {[%clk 0:04:37.1]} 7... Bd7 {[%clk 0:04:40.4]} 8. O-O
{[%clk 0:04:35.6]} 8... O-O-O {[%clk 0:04:38.1]} 9. Re1 {[%clk 0:04:34.6]} 9...
Qf6 {[%clk 0:04:23]} 10. d4 {[%clk 0:04:24.1]} 10... Bg4 {[%clk 0:04:19.3]} 11.
Bg5 {[%clk 0:04:07.5]} 11... Qg6 {[%clk 0:04:06.6]} 12. Bd3 {[%clk 0:03:53]}
12... Qh5 {[%clk 0:03:55.3]} 13. d5 {[%clk 0:03:26.7]} 13... Nb4 {[%clk
0:03:33]} 14. Bxe7 {[%clk 0:03:11.1]} 14... Bxe7 {[%clk 0:03:25.1]} 15. Rxe7
{[%clk 0:03:11]} 15... Nxd3 {[%clk 0:03:20.3]} 16. Qxd3 {[%clk 0:03:06.7]} 16...
Bxf3 {[%clk 0:03:03.5]} 17. Qxf3 {[%clk 0:03:00]} 17... Qxf3 {[%clk 0:03:01.9]}
18. gxf3 {[%clk 0:02:57.6]} 18... Rhf8 {[%clk 0:03:00.4]} 19. b4 {[%clk
0:02:49]} 19... Rde8 {[%clk 0:02:58.4]} 20. Rae1 {[%clk 0:02:47.3]} 20... Kd8
{[%clk 0:02:55.5]} 21. Rxe8+ {[%clk 0:02:45.7]} 21... Rxe8 {[%clk 0:02:54.3]}
22. Rxe8+ {[%clk 0:02:44.3]} 22... Kxe8 {[%clk 0:02:53.1]} 23. Kf1 {[%clk
0:02:43.8]} 23... Ke7 {[%clk 0:02:51.8]} 24. Ke2 {[%clk 0:02:43.5]} 24... c6
{[%clk 0:02:48.5]} 25. Kd3 {[%clk 0:02:39.4]} 25... cxd5 {[%clk 0:02:47.2]} 26.
cxd5 {[%clk 0:02:12.4]} 26... Kd6 {[%clk 0:02:45.2]} 27. Kc4 {[%clk 0:02:06.1]}
27... a6 {[%clk 0:02:39.4]} 28. a4 {[%clk 0:02:03.4]} 28... f5 {[%clk 0:02:35]}
29. b5 {[%clk 0:02:00.6]} 29... axb5+ {[%clk 0:02:33.2]} 30. Kxb5 {[%clk
0:01:59.8]} 30... Kxd5 {[%clk 0:02:31]} 31. a5 {[%clk 0:01:59.4]} 31... Kd6
{[%clk 0:02:28.3]} 32. Kb6 {[%clk 0:01:58.8]} 32... Kd7 {[%clk 0:02:26.4]} 33.
Kxb7 {[%clk 0:01:58.2]} 1-0

[Event "Live Chess"]
[Site "Chess.com"]
[Date "2023.05.21"]
[Round "-"]
[White "Tushinskiy"]
[Black "Ferrarifan27"]
[Result "1-0"]
[WhiteElo "2200"]
[BlackElo "2066"]
[TimeControl "300"]
[EndTime "23:05:39 PDT"]
[Termination "Tushinskiy won by resignation"]

1. d4 {[%clk 0:04:57.8]} 1... Nf6 {[%clk 0:04:58]} 2. c3 {[%clk 0:04:57.7]} 2...
d5 {[%clk 0:04:56.1]} 3. Nf3 {[%clk 0:04:57.6]} 3... Bf5 {[%clk 0:04:53.4]} 4.
Bf4 {[%clk 0:04:56.8]} 4... e6 {[%clk 0:04:51.1]} 5. Nbd2 {[%clk 0:04:55.9]}
5... h6 {[%clk 0:04:50.1]} 6. Bg3 {[%clk 0:04:55.2]} 6... Bd6 {[%clk 0:04:48.4]}
7. e3 {[%clk 0:04:54.7]} 7... Bxg3 {[%clk 0:04:46.4]} 8. hxg3 {[%clk 0:04:54.6]}
8... Nbd7 {[%clk 0:04:44.5]} 9. b4 {[%clk 0:04:53.8]} 9... Qe7 {[%clk 0:04:43]}
10. a4 {[%clk 0:04:52.6]} 10... e5 {[%clk 0:04:39.1]} 11. Qb3 {[%clk 0:04:50.4]}
11... exd4 {[%clk 0:04:36.7]} 12. cxd4 {[%clk 0:04:50.3]} 12... O-O {[%clk
0:04:27.5]} 13. Be2 {[%clk 0:04:48.9]} 13... Rfe8 {[%clk 0:04:25.8]} 14. O-O
{[%clk 0:04:48.1]} 14... Ne4 {[%clk 0:04:17.3]} 15. Rfc1 {[%clk 0:04:46.5]}
15... c6 {[%clk 0:04:14.3]} 16. b5 {[%clk 0:04:44.5]} 16... Rac8 {[%clk
0:04:04.9]} 17. a5 {[%clk 0:04:39.5]} 17... Nxd2 {[%clk 0:04:01.4]} 18. Nxd2
{[%clk 0:04:38.1]} 18... Nf6 {[%clk 0:03:59.7]} 19. a6 {[%clk 0:04:33.4]} 19...
cxb5 {[%clk 0:03:52.4]} 20. Qxb5 {[%clk 0:04:20.5]} 20... bxa6 {[%clk
0:03:48.4]} 21. Qxa6 {[%clk 0:04:19]} 21... Rxc1+ {[%clk 0:03:39.9]} 22. Rxc1
{[%clk 0:04:18.9]} 22... Rb8 {[%clk 0:03:36.5]} 23. Nf3 {[%clk 0:04:16.1]} 23...
Ne4 {[%clk 0:03:01.7]} 24. Bd3 {[%clk 0:04:10.3]} 24... Qb7 {[%clk 0:02:21.5]}
25. Qa5 {[%clk 0:03:56.6]} 25... Qb2 {[%clk 0:02:19]} 26. Rf1 {[%clk 0:03:52]}
26... Qb7 {[%clk 0:02:07.3]} 27. Ne5 {[%clk 0:03:43.2]} 27... f6 {[%clk
0:02:04]} 28. Nf3 {[%clk 0:03:40.3]} 28... Qf7 {[%clk 0:01:46.6]} 29. Rc1 {[%clk
0:03:32.1]} 29... Rb2 {[%clk 0:01:31.2]} 30. Rc7 {[%clk 0:03:26.2]} 30... Qh5
{[%clk 0:01:21]} 31. Qxd5+ {[%clk 0:03:19.4]} 31... Kh7 {[%clk 0:01:16.1]} 32.
Bxe4 {[%clk 0:03:15.7]} 32... Bxe4 {[%clk 0:01:07.8]} 33. Qxh5 {[%clk 0:03:13]}
33... Rb1+ {[%clk 0:01:05.3]} 34. Kh2 {[%clk 0:03:11.8]} 1-0

[Event "Live Chess"]
[Site "Chess.com"]
[Date "2023.05.21"]
[Round "-"]
[White "KeithArkell"]
[Black "Long1968"]
[Result "1-0"]
[WhiteElo "2561"]
[BlackElo "1048"]
[TimeControl "300"]
[EndTime "23:05:52 PDT"]
[Termination "KeithArkell won on time"]

1. d4 {[%clk 0:04:57.6]} 1... e6 {[%clk 0:04:56.2]} 2. Nf3 {[%clk 0:04:54.1]}
2... c5 {[%clk 0:04:52.2]} 3. c3 {[%clk 0:04:52.8]} 3... d5 {[%clk 0:04:48.2]}
4. Bg5 {[%clk 0:04:48.8]} 4... Nf6 {[%clk 0:04:43.7]} 5. e3 {[%clk 0:04:46.1]}
5... Be7 {[%clk 0:04:40]} 6. Nbd2 {[%clk 0:04:40.8]} 6... cxd4 {[%clk
0:04:31.9]} 7. exd4 {[%clk 0:04:37.6]} 7... Nc6 {[%clk 0:04:27.8]} 8. Bd3 {[%clk
0:04:35.1]} 8... O-O {[%clk 0:04:21.8]} 9. O-O {[%clk 0:04:33.6]} 9... h6 {[%clk
0:04:18.6]} 10. Bh4 {[%clk 0:04:32]} 10... a6 {[%clk 0:03:59.8]} 11. Re1 {[%clk
0:04:30.7]} 11... Ng4 {[%clk 0:03:47.6]} 12. Bxe7 {[%clk 0:04:28.2]} 12... Qxe7
{[%clk 0:03:43.9]} 13. h3 {[%clk 0:04:23.8]} 13... Nf6 {[%clk 0:03:38.1]} 14.
Qe2 {[%clk 0:04:22.8]} 14... Re8 {[%clk 0:03:31.2]} 15. a3 {[%clk 0:04:20.9]}
15... Nd7 {[%clk 0:03:26.3]} 16. Qe3 {[%clk 0:04:18.3]} 16... b5 {[%clk
0:02:59.2]} 17. b4 {[%clk 0:04:14.3]} 17... Bb7 {[%clk 0:02:54.4]} 18. Nb3
{[%clk 0:04:13.2]} 18... e5 {[%clk 0:02:36.5]} 19. dxe5 {[%clk 0:04:09.6]} 19...
Ncxe5 {[%clk 0:02:28.6]} 20. Nxe5 {[%clk 0:04:08.2]} 20... Qxe5 {[%clk
0:02:17.2]} 21. Qxe5 {[%clk 0:04:05.1]} 21... Nxe5 {[%clk 0:02:08.1]} 22. Nc5
{[%clk 0:04:01.6]} 22... Nxd3 {[%clk 0:02:00.9]} 23. Nxd3 {[%clk 0:04:00.4]}
23... Rac8 {[%clk 0:01:56.4]} 24. Nc5 {[%clk 0:03:59.2]} 24... Bc6 {[%clk
0:01:51.9]} 25. f3 {[%clk 0:03:49.6]} 25... Kf8 {[%clk 0:01:43.4]} 26. Kf2
{[%clk 0:03:47.1]} 26... Ra8 {[%clk 0:01:20.8]} 27. Rxe8+ {[%clk 0:03:38]} 27...
Kxe8 {[%clk 0:01:16.5]} 28. Ke3 {[%clk 0:03:37]} 28... a5 {[%clk 0:01:05.2]} 29.
Nb3 {[%clk 0:03:32.5]} 29... axb4 {[%clk 0:01:00.6]} 30. axb4 {[%clk 0:03:31.4]}
30... Rxa1 {[%clk 0:00:54.5]} 31. Nxa1 {[%clk 0:03:30.5]} 31... Ke7 {[%clk
0:00:50.1]} 32. Kd4 {[%clk 0:03:28.4]} 32... Kd6 {[%clk 0:00:42.9]} 33. Nc2
{[%clk 0:03:25.1]} 33... f5 {[%clk 0:00:35.7]} 34. Ke3 {[%clk 0:03:17.1]} 34...
g5 {[%clk 0:00:30.3]} 35. f4 {[%clk 0:03:14.6]} 35... d4+ {[%clk 0:00:18.1]} 36.
Nxd4 {[%clk 0:03:13.2]} 36... Bxg2 {[%clk 0:00:15.4]} 37. Nxf5+ {[%clk
0:02:58.2]} 37... Kd7 {[%clk 0:00:08]} 38. Nxh6 {[%clk 0:02:56.6]} 38... Bxh3
{[%clk 0:00:04.9]} 39. fxg5 {[%clk 0:02:55]} 1-0